[Event "26th OIBM 2023"]
[Site "Gmund am Tegernsee"]
[Date "2023.11.02"]
[Round "6.32"]
[White "Pollmann, Sascha"]
[Black "Solomon, Kenny"]
[Result "0-1"]
[ECO "D02"]
[WhiteElo "2061"]
[BlackElo "2300"]
[Annotator "ChessBase"]
[PlyCount "208"]
[EventDate "2023.10.04"]
[EventType "swiss"]
[EventCountry "GER"]
[SourceTitle "playchess.com"]
[Source "ChessBase"]
[SourceQuality "1"]
[TimeControl "40/5400+30:1800+30"]

1. Nf3 {[%emt 0:00:02]} d5 {[%emt 0:00:09]} 2. g3 {[%emt 0:00:08]} g6 {[%emt 0:00:06]} 3. Bg2 {[%emt 0:00:13]} Bg7 {[%emt 0:00:07]} 4. d4 {[%emt 0:00:20]} c6 {[%emt 0:00:08]} 5. O-O {[%emt 0:00:25]} Nf6 {[%emt 0:00:08]} 6. Bf4 {[%emt 0:02:10]} O-O {[%emt 0:01:25]} 7. Nbd2 {[%emt 0:01:52]} b6 {[%emt 0:15:10]} 8. Re1 {[%emt 0:03:19]} Bb7 {[%emt 0:00:19]} 9. c3 {[%emt 0:06:32]} c5 {[%emt 0:04:22]} 10. a4 {[%emt 0:01:26]} cxd4 {[%emt 0:06:09]} 11. cxd4 {[%emt 0:08:19]} Nc6 {[%emt 0:00:21]} 12. Nb3 {[%emt 0:02:13]} a5 {[%emt 0:01:58]} 13. Ne5 {[%emt 0:03:42]} Rc8 {[%emt 0:19:26]} 14. Nxc6 {[%emt 0:06:51]} Bxc6 {[%emt 0:00:34]} 15. Be5 {[%emt 0:02:12]} Re8 {[%emt 0:08:31]} 16. Nd2 {[%emt 0:02:56]} e6 {[%emt 0:00:02]} 17. e3 {[%emt 0:04:07]} Bf8 {[%emt 0:01:05]} 18. Bxf6 {[%emt 0:03:06]} Qxf6 {[%emt 0:00:02]} 19. Nf3 {[%emt 0:02:13]} Bd6 {[%emt 0:00:53]} 20. Qb3 {[%emt 0:00:52]} Rb8 {[%emt 0:01:35]} 21. Rec1 {[%emt 0:01:33]} Bd7 {[%emt 0:00:14]} 22. Ne1 {[%emt 0:03:27]} h5 {[%emt 0:01:14]} 23. Qd1 {[%emt 0:05:11]} h4 {[%emt 0:01:23]} 24. Qf3 {[%emt 0:01:40]} Qg5 {[%emt 0:02:31]} 25. Nd3 {[%emt 0:04:47]} Rbc8 {[%emt 0:00:11]} 26. b3 {[%emt 0:00:41]} Rb8 {[%emt 0:01:45]} 27. Bf1 {[%emt 0:03:12]} hxg3 {[%emt 0:00:12]} 28. hxg3 {[%emt 0:00:11]} Kg7 {[%emt 0:04:00]} 29. Bg2 {[%emt 0:04:26]} Rh8 {[%emt 0:00:23]} 30. Kf1 {[%emt 0:01:28]} Rh2 {[%emt 0:06:54]} 31. Ke1 {[%emt 0:00:26]} Qe7 {[%emt 0:02:23]} 32. Ke2 {[%emt 0:04:30]} b5 {[%emt 0:04:41]} 33. Nc5 {[%emt 0:06:09]} Be8 {[%emt 0:00:08]} 34. Kf1 {[%emt 0:01:02]} bxa4 {[%emt 0:00:13]} 35. bxa4 {[%emt 0:00:24]} Rb4 {[%emt 0:01:05]} 36. Kg1 {[%emt 0:00:34]} Rh8 {[%emt 0:00:17]} 37. Qd1 {[%emt 0:04:17]} Qg5 {[%emt 0:00:02]} 38. Rab1 {[%emt 0:01:26]} Bxc5 {[%emt 0:12:53]} 39. dxc5 {[%emt 0:00:10]} Bxa4 {[%emt 0:00:04]} 40. Qd2 {[%emt 0:01:26]} Bc6 {[%emt 0:03:24]} 41. Rxb4 {[%emt 0:31:21]} axb4 {[%emt 0:30:02]} 42. Qxb4 {[%emt 0:00:25]} Qf6 {[%emt 0:00:00]} 43. Qb6 {[%emt 0:00:00]} Rc8 {[%emt 0:00:00]} 44. Qa6 {[%emt 0:00:00]} Rc7 {[%emt 0:00:00]} 45. Rb1 {[%emt 0:00:00]} Qc3 {[%emt 0:00:00]} 46. Qa1 {[%emt 0:00:00]} Qxa1 {[%emt 0:00:00]} 47. Rxa1 {[%emt 0:00:00]} Bb5 {[%emt 0:00:00]} 48. Ra5 {[%emt 0:00:00]} Bc4 {[%emt 0:00:00]} 49. e4 {[%emt 0:00:00]} Kf6 {[%emt 0:00:00]} 50. exd5 {[%emt 0:00:00]} exd5 {[%emt 0:00:00]} 51. f4 {[%emt 0:00:00]} Ke7 {[%emt 0:00:00]} 52. Bf1 {[%emt 0:00:00]} Ke6 {[%emt 0:00:00]} 53. Bh3+ {[%emt 0:00:00]} f5 {[%emt 0:00:00]} 54. Kf2 {[%emt 0:00:00]} Rb7 {[%emt 0:01:06]} 55. Ra3 {[%emt 0:00:00]} Rb2+ {[%emt 0:00:33]} 56. Kf3 {[%emt 0:00:21]} d4 {[%emt 0:03:12]} 57. g4 {[%emt 0:01:25]} d3 {[%emt 0:01:45]} 58. gxf5+ {[%emt 0:00:12]} gxf5 {[%emt 0:00:01]} 59. Ra1 {[%emt 0:02:03]} Kd5 {[%emt 0:06:00]} 60. Bxf5 {[%emt 0:01:28]} Kxc5 {[%emt 0:00:34]} 61. Bxd3 {[%emt 0:02:12]} Bxd3 {[%emt 0:00:02]} 62. Ke3 {[%emt 0:00:51]} Bc4 {[%emt 0:00:32]} 63. Ra5+ {[%emt 0:00:31]} Kd6 {[%emt 0:00:06]} 64. Kd4 {[%emt 0:00:33]} Bf1 {[%emt 0:00:21]} 65. Rd5+ {[%emt 0:00:25]} Ke6 {[%emt 0:00:06]} 66. Re5+ {[%emt 0:00:21]} Kf6 {[%emt 0:00:02]} 67. Ra5 {[%emt 0:00:50]} Rb4+ {[%emt 0:00:15]} 68. Ke3 {[%emt 0:00:17]} Bb5 {[%emt 0:00:08]} 69. Ra8 {[%emt 0:00:55]} Bd7 {[%emt 0:00:36]} 70. Ra6+ {[%emt 0:00:24]} Kf5 {[%emt 0:00:13]} 71. Rd6 {[%emt 0:01:13]} Be6 {[%emt 0:00:32]} 72. Rd4 {[%emt 0:01:49]} Rb5 {[%emt 0:00:20]} 73. Rd8 {[%emt 0:00:38]} Rb3+ {[%emt 0:00:12]} 74. Rd3 {[%emt 0:00:11]} Rb1 {[%emt 0:00:08]} 75. Rd2 {[%emt 0:01:20]} Bc4 {[%emt 0:00:34]} 76. Rf2 {[%emt 0:01:04]} Rb3+ {[%emt 0:01:02]} 77. Kd4 {[%emt 0:00:26]} Bf7 {[%emt 0:01:27]} 78. Kc5 {[%emt 0:00:35]} Bh5 {[%emt 0:00:19]} 79. Kc4 {[%emt 0:03:16]} Ra3 {[%emt 0:00:10]} 80. Rd2 {[%emt 0:01:12]} Bf3 {[%emt 0:00:33]} 81. Kb4 {[%emt 0:01:54]} Re3 {[%emt 0:00:12]} 82. Rd8 {[%emt 0:00:49]} Kxf4 {[%emt 0:00:17]} 83. Rf8+ {[%emt 0:00:08]} Kg3 {[%emt 0:00:33]} 84. Rg8+ {[%emt 0:00:12]} Bg4 {[%emt 0:00:05]} 85. Kc5 {[%emt 0:00:12]} Kf4 {[%emt 0:00:03]} 86. Rf8+ {[%emt 0:00:16]} Bf5 {[%emt 0:00:01]} 87. Kd4 {[%emt 0:00:23]} Rd3+ {[%emt 0:00:17]} 88. Kc4 {[%emt 0:00:14]} Rd7 {[%emt 0:00:15]} 89. Re8 {[%emt 0:00:30]} Be4 {[%emt 0:00:33]} 90. Rf8+ {[%emt 0:00:19]} Ke3 {[%emt 0:00:05]} 91. Rh8 {[%emt 0:00:45]} Rc7+ {[%emt 0:00:10]} 92. Kb3 {[%emt 0:00:18]} Kd4 {[%emt 0:01:01]} 93. Rd8+ {[%emt 0:00:37]} Bd5+ {[%emt 0:00:25]} 94. Kb2 {[%emt 0:00:54]} Rh7 {[%emt 0:00:37]} 95. Ka3 {[%emt 0:01:39]} Rb7 {[%emt 0:00:31]} 96. Rh8 {[%emt 0:00:51]} Rb3+ {[%emt 0:02:40]} 97. Ka4 {[%emt 0:00:07]} Rb2 {[%emt 0:00:05]} 98. Ka3 {[%emt 0:00:46]} Rb1 {[%emt 0:00:30]} 99. Rh4+ {[%emt 0:00:16]} Kc5 {[%emt 0:00:19]} 100. Rh8 {[%emt 0:00:58]} Rb3+ {[%emt 0:00:54]} 101. Ka4 {[%emt 0:00:09]} Rg3 {[%emt 0:01:02]} 102. Rh5 {[%emt 0:00:39]} Rf3 {[%emt 0:00:33]} 103. Rg5 {[%emt 0:00:24]} Rh3 {[%emt 0:01:04]} 104. Rf5 {[%emt 0:00:21]} Rh2 {[%emt 0:00:24]} 0-1

[Event "26th OIBM 2023"]
[Site "Gmund am Tegernsee"]
[Date "2023.11.02"]
[Round "6.33"]
[White "Hofmann, Lorenz"]
[Black "Bettalli, Francesco"]
[Result "1/2-1/2"]
[ECO "C26"]
[WhiteElo "2091"]
[BlackElo "2274"]
[Annotator "ChessBase"]
[PlyCount "100"]
[EventDate "2023.10.04"]
[EventType "swiss"]
[EventCountry "GER"]
[SourceTitle "playchess.com"]
[Source "ChessBase"]
[SourceQuality "1"]
[TimeControl "40/5400+30:1800+30"]

1. e4 {[%emt 0:00:01]} e5 {[%emt 0:00:14]} 2. Nc3 {[%emt 0:00:04]} Nf6 {[%emt 0:00:10]} 3. d4 {[%emt 0:00:03]} exd4 {[%emt 0:01:18]} 4. Qxd4 {[%emt 0:00:05]} Nc6 {[%emt 0:00:09]} 5. Qd3 {[%emt 0:00:03]} Bc5 {[%emt 0:05:42]} 6. Be2 {[%emt 0:00:35]} d6 {[%emt 0:00:39]} 7. a3 {[%emt 0:02:14]} Be6 {[%emt 0:08:16]} 8. Be3 {[%emt 0:01:44]} Bb6 {[%emt 0:03:07]} 9. O-O-O {[%emt 0:08:20]} Qe7 {[%emt 0:00:53]} 10. f4 {[%emt 0:02:05]} O-O-O {[%emt 0:17:56]} 11. Bxb6 {[%emt 0:01:46]} axb6 {[%emt 0:00:06]} 12. Bf3 {[%emt 0:09:51]} Nd7 {[%emt 0:05:19]} 13. Nd5 {[%emt 0:08:18]} Qh4 {[%emt 0:01:10]} 14. g3 {[%emt 0:07:40]} Qh6 {[%emt 0:00:02]} 15. Qd2 {[%emt 0:04:06]} Rhe8 {[%emt 0:04:35]} 16. Ne2 {[%emt 0:02:49]} Nf6 {[%emt 0:04:14]} 17. Nec3 {[%emt 0:04:07]} Bxd5 {[%emt 0:04:09]} 18. exd5 {[%emt 0:00:34]} Nb8 {[%emt 0:00:04]} 19. Nb5 {[%emt 0:06:08]} Na6 {[%emt 0:00:24]} 20. Rhe1 {[%emt 0:03:31]} Qh3 {[%emt 0:01:00]} 21. b4 {[%emt 0:11:50]} Qd7 {[%emt 0:02:00]} 22. Qd3 {[%emt 0:01:21]} Rxe1 {[%emt 0:00:42]} 23. Rxe1 {[%emt 0:00:02]} Re8 {[%emt 0:00:02]} 24. Rxe8+ {[%emt 0:00:33]} Qxe8 {[%emt 0:00:12]} 25. Kd2 {[%emt 0:01:01]} h6 {[%emt 0:06:41]} 26. c4 {[%emt 0:01:04]} Qe7 {[%emt 0:00:55]} 27. Qe3 {[%emt 0:00:18]} Qxe3+ {[%emt 0:00:26]} 28. Kxe3 {[%emt 0:00:01]} Kd7 {[%emt 0:00:14]} 29. Nd4 {[%emt 0:03:40]} g6 {[%emt 0:00:41]} 30. g4 {[%emt 0:00:42]} Ke7 {[%emt 0:00:51]} 31. h4 {[%emt 0:01:07]} Nb8 {[%emt 0:00:48]} 32. g5 {[%emt 0:01:06]} hxg5 {[%emt 0:00:07]} 33. hxg5 {[%emt 0:00:01]} Ne8 {[%emt 0:00:49]} 34. Bg4 {[%emt 0:07:11]} Kd8 {[%emt 0:05:01]} 35. f5 {[%emt 0:02:01]} gxf5 {[%emt 0:00:01]} 36. Bxf5 {[%emt 0:00:26]} Ng7 {[%emt 0:00:12]} 37. Kf4 {[%emt 0:03:02]} Nd7 {[%emt 0:00:52]} 38. Bxd7 {[%emt 0:02:59]} Kxd7 {[%emt 0:00:03]} 39. Nf5 {[%emt 0:01:03]} Nxf5 {[%emt 0:01:05]} 40. Kxf5 {[%emt 0:00:16]} Ke7 {[%emt 0:00:08]} 41. b5 {[%emt 0:31:31]} Ke8 {[%emt 0:30:06]} 42. Kf6 {[%emt 0:00:17]} Kf8 {[%emt 0:00:01]} 43. g6 {[%emt 0:01:33]} fxg6 {[%emt 0:00:03]} 44. Kxg6 {[%emt 0:00:05]} Kg8 {[%emt 0:00:25]} 45. Kf6 {[%emt 0:00:05]} Kf8 {[%emt 0:00:01]} 46. Ke6 {[%emt 0:00:09]} Ke8 {[%emt 0:00:02]} 47. a4 {[%emt 0:00:52]} Kd8 {[%emt 0:00:01]} 48. Kf7 {[%emt 0:00:06]} Kd7 {[%emt 0:00:03]} 49. Kf8 {[%emt 0:00:44]} Kd8 {[%emt 0:00:01]} 50. Kf7 {[%emt 0:00:07]} Kd7 {[%emt 0:00:01]} 1/2-1/2

[Event "26th OIBM 2023"]
[Site "Gmund am Tegernsee"]
[Date "2023.11.02"]
[Round "6.34"]
[White "Basener, Winfried"]
[Black "Goldbeck, Lars"]
[Result "1-0"]
[ECO "B32"]
[WhiteElo "1941"]
[BlackElo "2272"]
[Annotator "ChessBase"]
[PlyCount "207"]
[EventDate "2023.10.04"]
[EventType "swiss"]
[EventCountry "GER"]
[SourceTitle "playchess.com"]
[Source "ChessBase"]
[SourceQuality "1"]
[TimeControl "40/5400+30:1800+30"]

1. e4 {[%emt 0:00:04]} c5 {[%emt 0:00:05]} 2. Nf3 {[%emt 0:00:08]} Nc6 {[%emt 0:00:01]} 3. d4 {[%emt 0:00:19]} cxd4 {[%emt 0:00:02]} 4. Nxd4 {[%emt 0:00:16]} e5 {[%emt 0:00:04]} 5. Nb5 {[%emt 0:00:23]} d6 {[%emt 0:00:01]} 6. c4 {[%emt 0:00:19]} a6 {[%emt 0:00:20]} 7. N5c3 {[%emt 0:00:07]} f5 {[%emt 0:00:49]} 8. exf5 {[%emt 0:01:51]} Bxf5 {[%emt 0:00:40]} 9. Bd3 {[%emt 0:30:04]} Be6 {[%emt 0:00:41]} 10. Be3 {[%emt 0:03:24]} Nf6 {[%emt 0:00:43]} 11. Be2 {[%emt 0:01:22]} Be7 {[%emt 0:03:28]} 12. O-O {[%emt 0:00:08]} O-O {[%emt 0:00:05]} 13. b3 {[%emt 0:02:11]} Qe8 {[%emt 0:04:56]} 14. Bf3 {[%emt 0:15:27]} Qg6 {[%emt 0:09:34]} 15. Nd5 {[%emt 0:02:22]} e4 {[%emt 0:02:54]} 16. Nf4 {[%emt 0:02:28]} Qf5 {[%emt 0:01:13]} 17. Be2 {[%emt 0:05:43]} Bf7 {[%emt 0:04:30]} 18. Nc3 {[%emt 0:00:26]} Rae8 {[%emt 0:00:41]} 19. Ncd5 {[%emt 0:08:17]} Bd8 {[%emt 0:01:06]} 20. Rc1 {[%emt 0:01:50]} Ne5 {[%emt 0:16:55]} 21. Nxf6+ {[%emt 0:00:17]} Bxf6 {[%emt 0:00:25]} 22. Nd5 {[%emt 0:03:25]} Bh4 {[%emt 0:02:51]} 23. Nf4 {[%emt 0:05:43]} Kh8 {[%emt 0:06:53]} 24. Kh1 {[%emt 0:00:42]} Bg5 {[%emt 0:03:50]} 25. Nd5 {[%emt 0:00:31]} Bd8 {[%emt 0:00:08]} 26. Nf4 {[%emt 0:00:39]} Bg8 {[%emt 0:06:33]} 27. Rc2 {[%emt 0:02:10]} Ba5 {[%emt 0:05:27]} 28. a3 {[%emt 0:00:53]} Bd8 {[%emt 0:04:49]} 29. Rd2 {[%emt 0:00:23]} Bc7 {[%emt 0:00:49]} 30. Nd5 {[%emt 0:01:36]} Bb8 {[%emt 0:00:16]} 31. Bb6 {[%emt 0:02:39]} Qg5 {[%emt 0:03:46]} 32. Be3 {[%emt 0:00:24]} Qh4 {[%emt 0:00:04]} 33. Bb6 {[%emt 0:01:11]} Bf7 {[%emt 0:07:28]} 34. a4 {[%emt 0:00:11]} h6 {[%emt 0:01:22]} 35. Ne3 {[%emt 0:02:22]} d5 {[%emt 0:02:48]} 36. g3 {[%emt 0:00:17]} Qh3 {[%emt 0:00:32]} 37. Bc5 {[%emt 0:00:48]} Rg8 {[%emt 0:01:06]} 38. cxd5 {[%emt 0:00:11]} Nf3 {[%emt 0:01:30]} 39. Bxf3 {[%emt 0:00:18]} exf3 {[%emt 0:00:01]} 40. Qxf3 {[%emt 0:01:55]} Qd7 {[%emt 0:06:16]} 41. Qf5 {[%emt 0:31:09]} Be6 {[%emt 0:31:15]} 42. Qg6 {[%emt 0:01:50]} Bf7 {[%emt 0:01:23]} 43. Qf5 {[%emt 0:02:28]} Be6 {[%emt 0:00:05]} 44. Qf3 {[%emt 0:00:00]} Be5 {[%emt 0:00:00]} 45. Rfd1 {[%emt 0:00:00]} Bf7 {[%emt 0:00:00]} 46. Qf5 {[%emt 0:00:00]} Qxf5 {[%emt 0:00:00]} 47. Nxf5 {[%emt 0:00:00]} Bh5 {[%emt 0:00:00]} 48. Rc1 {[%emt 0:00:00]} Bc3 {[%emt 0:00:00]} 49. Rdc2 {[%emt 0:00:00]} Bg6 {[%emt 0:00:00]} 50. Rxc3 {[%emt 0:00:00]} Bxf5 {[%emt 0:00:00]} 51. f3 {[%emt 0:00:00]} Re2 {[%emt 0:00:00]} 52. g4 {[%emt 0:00:08]} Bd7 {[%emt 0:00:00]} 53. Re3 {[%emt 0:00:30]} Rd2 {[%emt 0:00:00]} 54. Re5 {[%emt 0:00:37]} Rc8 {[%emt 0:00:00]} 55. Rc3 {[%emt 0:02:28]} b6 {[%emt 0:00:00]} 56. Bb4 {[%emt 0:00:06]} Rxc3 {[%emt 0:00:00]} 57. Bxc3 {[%emt 0:00:11]} Rd3 {[%emt 0:00:00]} 58. Re7 {[%emt 0:00:51]} Rxc3 {[%emt 0:00:00]} 59. Rxd7 {[%emt 0:00:08]} Rxf3 {[%emt 0:00:00]} 60. Ra7 {[%emt 0:01:15]} Rxb3 {[%emt 0:00:00]} 61. Rxa6 {[%emt 0:00:08]} Rd3 {[%emt 0:00:00]} 62. Rxb6 {[%emt 0:00:11]} Rxd5 {[%emt 0:00:00]} 63. h3 {[%emt 0:01:17]} Rd3 {[%emt 0:00:00]} 64. Kg2 {[%emt 0:00:08]} Ra3 {[%emt 0:00:00]} 65. Ra6 {[%emt 0:00:53]} Kh7 {[%emt 0:00:00]} 66. h4 {[%emt 0:00:08]} g5 {[%emt 0:01:17]} 67. Ra7+ {[%emt 0:01:11]} Kg6 {[%emt 0:01:24]} 68. Ra6+ {[%emt 0:00:33]} Kf7 {[%emt 0:01:12]} 69. h5 {[%emt 0:00:53]} Kg7 {[%emt 0:00:39]} 70. Kf2 {[%emt 0:00:23]} Kh7 {[%emt 0:03:08]} 71. Ra7+ {[%emt 0:00:13]} Kg8 {[%emt 0:00:01]} 72. a5 {[%emt 0:00:27]} Ra4 {[%emt 0:00:25]} 73. Kf3 {[%emt 0:00:09]} Rf4+ {[%emt 0:00:29]} 74. Kg3 {[%emt 0:00:09]} Ra4 {[%emt 0:00:11]} 75. a6 {[%emt 0:00:07]} Ra3+ {[%emt 0:00:53]} 76. Kf2 {[%emt 0:00:08]} Ra4 {[%emt 0:00:42]} 77. Ke3 {[%emt 0:00:17]} Kf8 {[%emt 0:03:05]} 78. Kd3 {[%emt 0:00:08]} Ke8 {[%emt 0:00:45]} 79. Kc3 {[%emt 0:01:06]} Kd8 {[%emt 0:00:08]} 80. Kb3 {[%emt 0:00:14]} Ra1 {[%emt 0:00:04]} 81. Kb4 {[%emt 0:00:25]} Kc8 {[%emt 0:01:51]} 82. Kb5 {[%emt 0:00:29]} Rb1+ {[%emt 0:00:04]} 83. Kc6 {[%emt 0:00:13]} Rc1+ {[%emt 0:00:01]} 84. Kd6 {[%emt 0:00:13]} Kb8 {[%emt 0:01:48]} 85. Rb7+ {[%emt 0:00:24]} Ka8 {[%emt 0:00:40]} 86. Rc7 {[%emt 0:00:23]} Rg1 {[%emt 0:00:28]} 87. Rc4 {[%emt 0:00:23]} Ka7 {[%emt 0:00:41]} 88. Ra4 {[%emt 0:02:21]} Re1 {[%emt 0:00:02]} 89. Kd5 {[%emt 0:00:30]} Rg1 {[%emt 0:01:36]} 90. Ke5 {[%emt 0:00:20]} Rf1 {[%emt 0:00:54]} 91. Rd4 {[%emt 0:00:29]} Kxa6 {[%emt 0:00:06]} 92. Rd6+ {[%emt 0:00:08]} Kb7 {[%emt 0:01:13]} 93. Rxh6 {[%emt 0:00:19]} Rf4 {[%emt 0:00:08]} 94. Rg6 {[%emt 0:00:18]} Rxg4 {[%emt 0:00:01]} 95. Kf5 {[%emt 0:00:23]} Rg1 {[%emt 0:02:39]} 96. Rxg5 {[%emt 0:00:07]} Rh1 {[%emt 0:00:10]} 97. Kg6 {[%emt 0:00:12]} Kc7 {[%emt 0:00:04]} 98. h6 {[%emt 0:00:13]} Kd7 {[%emt 0:00:10]} 99. Kg7 {[%emt 0:00:10]} Re1 {[%emt 0:00:28]} 100. h7 {[%emt 0:01:05]} Re7+ {[%emt 0:00:01]} 101. Kh6 {[%emt 0:00:18]} Re8 {[%emt 0:00:23]} 102. Rg8 {[%emt 0:01:06]} Re6+ {[%emt 0:00:04]} 103. Kg5 {[%emt 0:00:18]} Re5+ {[%emt 0:00:02]} 104. Kf4 {[%emt 0:00:08]} 1-0

[Event "26th OIBM 2023"]
[Site "Gmund am Tegernsee"]
[Date "2023.11.02"]
[Round "6.35"]
[White "Gold, Florian"]
[Black "Neukirchner, Pascal"]
[Result "1/2-1/2"]
[ECO "A58"]
[WhiteElo "1898"]
[BlackElo "2265"]
[Annotator "ChessBase"]
[PlyCount "113"]
[EventDate "2023.10.04"]
[EventType "swiss"]
[EventCountry "GER"]
[SourceTitle "playchess.com"]
[Source "ChessBase"]
[SourceQuality "1"]
[TimeControl "40/5400+30:1800+30"]

1. d4 {[%emt 0:00:03]} Nf6 {[%emt 0:00:05]} 2. c4 {[%emt 0:00:03]} c5 {[%emt 0:00:08]} 3. d5 {[%emt 0:00:04]} b5 {[%emt 0:00:04]} 4. cxb5 {[%emt 0:00:03]} a6 {[%emt 0:00:05]} 5. bxa6 {[%emt 0:00:03]} g6 {[%emt 0:00:17]} 6. Nc3 {[%emt 0:00:08]} Bg7 {[%emt 0:00:04]} 7. e4 {[%emt 0:00:03]} O-O {[%emt 0:00:05]} 8. a7 {[%emt 0:00:02]} Rxa7 {[%emt 0:00:05]} 9. Nf3 {[%emt 0:00:04]} e6 {[%emt 0:00:04]} 10. Be2 {[%emt 0:00:03]} exd5 {[%emt 0:00:04]} 11. exd5 {[%emt 0:00:02]} d6 {[%emt 0:00:10]} 12. O-O {[%emt 0:00:05]} Na6 {[%emt 0:00:02]} 13. Re1 {[%emt 0:00:03]} Nc7 {[%emt 0:00:34]} 14. Bf4 {[%emt 0:00:07]} Rb7 {[%emt 0:01:36]} 15. Qd2 {[%emt 0:00:13]} Nfxd5 {[%emt 0:01:23]} 16. Nxd5 {[%emt 0:00:05]} Rxb2 {[%emt 0:00:16]} 17. Qd1 {[%emt 0:00:00]} Nxd5 {[%emt 0:00:10]} 18. Qxd5 {[%emt 0:00:02]} Rxe2 {[%emt 0:00:08]} 19. Rxe2 {[%emt 0:00:03]} Bxa1 {[%emt 0:00:05]} 20. Bxd6 {[%emt 0:00:04]} Be6 {[%emt 0:26:59]} 21. Qxc5 {[%emt 0:02:40]} Re8 {[%emt 0:00:08]} 22. h3 {[%emt 0:24:27]} Qa8 {[%emt 0:05:45]} 23. Qb6 {[%emt 0:31:18]} Qd5 {[%emt 0:40:43]} 24. Bc5 {[%emt 0:17:36]} Qc4 {[%emt 0:07:07]} 25. Re1 {[%emt 0:03:41]} Bc3 {[%emt 0:02:22]} 26. Rd1 {[%emt 0:03:56]} Qxa2 {[%emt 0:05:04]} 27. Rd8 {[%emt 0:01:56]} Qa4 {[%emt 0:01:57]} 28. Bd4 {[%emt 0:04:49]} Bxd4 {[%emt 0:01:04]} 29. Rxe8+ {[%emt 0:00:06]} Qxe8 {[%emt 0:00:05]} 30. Qxd4 {[%emt 0:00:07]} Qa8 {[%emt 0:01:20]} 31. Qf6 {[%emt 0:02:01]} h6 {[%emt 0:03:04]} 32. h4 {[%emt 0:01:48]} Qd5 {[%emt 0:02:08]} 33. Qf4 {[%emt 0:04:01]} Kh7 {[%emt 0:00:37]} 34. Kh2 {[%emt 0:01:50]} Qh5 {[%emt 0:02:36]} 35. Nd4 {[%emt 0:02:11]} Qd5 {[%emt 0:00:54]} 36. Nxe6 {[%emt 0:00:24]} Qxe6 {[%emt 0:00:02]} 37. g3 {[%emt 0:00:17]} Qd5 {[%emt 0:00:13]} 38. Qf6 {[%emt 0:00:18]} Kg8 {[%emt 0:00:29]} 39. Qf4 {[%emt 0:00:09]} Kg7 {[%emt 0:00:10]} 40. Kg1 {[%emt 0:00:14]} g5 {[%emt 0:01:02]} 41. hxg5 {[%emt 0:32:24]} hxg5 {[%emt 0:01:32]} 42. Qe3 {[%emt 0:00:00]} Kg6 {[%emt 0:01:14]} 43. f3 {[%emt 0:00:00]} Kf6 {[%emt 0:04:53]} 44. Kf2 {[%emt 0:00:00]} Qa2+ {[%emt 0:03:58]} 45. Kg1 {[%emt 0:00:00]} Qa1+ {[%emt 0:00:19]} 46. Kg2 {[%emt 0:00:00]} Qe5 {[%emt 0:02:49]} 47. Qb6+ {[%emt 0:00:00]} Ke7 {[%emt 0:00:39]} 48. Kf2 {[%emt 0:00:00]} f6 {[%emt 0:04:41]} 49. Qe3 {[%emt 0:00:00]} Kd6 {[%emt 0:00:02]} 50. Qxe5+ {[%emt 0:00:00]} Kxe5 {[%emt 0:00:02]} 51. Ke3 {[%emt 0:00:00]} Kd5 {[%emt 0:00:25]} 52. Kd3 {[%emt 0:00:00]} f5 {[%emt 0:00:36]} 53. g4 {[%emt 0:00:00]} f4 {[%emt 0:01:27]} 54. Kc3 {[%emt 0:00:00]} Kc5 {[%emt 0:00:03]} 55. Kd3 {[%emt 0:00:00]} Kd5 {[%emt 0:00:01]} 56. Kc3 {[%emt 0:00:00]} Kc5 {[%emt 0:00:02]} 57. Kd3 {[%emt 0:00:00]} 1/2-1/2

[Event "26th OIBM 2023"]
[Site "Gmund am Tegernsee"]
[Date "2023.11.02"]
[Round "6.36"]
[White "Wyss, Jonas"]
[Black "Navarro Jahnke, Leo"]
[Result "1/2-1/2"]
[ECO "B23"]
[WhiteElo "2265"]
[BlackElo "1884"]
[Annotator "ChessBase"]
[PlyCount "116"]
[EventDate "2023.10.04"]
[EventType "swiss"]
[EventCountry "GER"]
[SourceTitle "playchess.com"]
[Source "ChessBase"]
[SourceQuality "1"]
[TimeControl "40/5400+30:1800+30"]

1. e4 {[%emt 0:00:03]} c5 {[%emt 0:00:11]} 2. Nc3 {[%emt 0:00:08]} Nc6 {[%emt 0:00:36]} 3. Bb5 {[%emt 0:00:09]} d6 {[%emt 0:00:44]} 4. Bxc6+ {[%emt 0:01:36]} bxc6 {[%emt 0:00:07]} 5. d3 {[%emt 0:00:12]} Nf6 {[%emt 0:01:14]} 6. f4 {[%emt 0:00:53]} e6 {[%emt 0:01:45]} 7. Nf3 {[%emt 0:03:27]} d5 {[%emt 0:01:55]} 8. O-O {[%emt 0:05:15]} Be7 {[%emt 0:07:24]} 9. b3 {[%emt 0:17:26]} Qc7 {[%emt 0:07:59]} 10. Qe1 {[%emt 0:04:55]} Ba6 {[%emt 0:20:46]} 11. f5 {[%emt 0:16:47]} d4 {[%emt 0:03:19]} 12. Na4 {[%emt 0:03:13]} exf5 {[%emt 0:01:59]} 13. exf5 {[%emt 0:01:18]} O-O-O {[%emt 0:00:20]} 14. Bf4 {[%emt 0:11:57]} Qb7 {[%emt 0:22:15]} 15. Ne5 {[%emt 0:04:54]} Bd6 {[%emt 0:00:37]} 16. Qa5 {[%emt 0:03:52]} Bb5 {[%emt 0:00:32]} 17. Nc4 {[%emt 0:01:31]} Bxf4 {[%emt 0:01:06]} 18. Rxf4 {[%emt 0:00:08]} Rd5 {[%emt 0:01:07]} 19. Nxc5 {[%emt 0:09:17]} Qb8 {[%emt 0:00:23]} 20. b4 {[%emt 0:05:47]} Qxf4 {[%emt 0:01:19]} 21. Qxa7 {[%emt 0:00:47]} Bxc4 {[%emt 0:04:57]} 22. Qb7+ {[%emt 0:01:36]} Kd8 {[%emt 0:00:08]} 23. Qa8+ {[%emt 0:00:26]} Kc7 {[%emt 0:00:32]} 24. Qa7+ {[%emt 0:00:12]} Kc8 {[%emt 0:10:36]} 25. Qb7+ {[%emt 0:02:41]} Kd8 {[%emt 0:00:08]} 26. Qa8+ {[%emt 0:01:09]} Kc7 {[%emt 0:00:30]} 27. Qa7+ {[%emt 0:00:11]} Kd6 {[%emt 0:04:05]} 28. Nb7+ {[%emt 0:00:15]} Ke5 {[%emt 0:00:09]} 29. Re1+ {[%emt 0:00:21]} Kxf5 {[%emt 0:00:18]} 30. Rf1 {[%emt 0:00:08]} Qxf1+ {[%emt 0:00:41]} 31. Kxf1 {[%emt 0:00:03]} Bb5 {[%emt 0:00:37]} 32. a4 {[%emt 0:00:16]} Re8 {[%emt 0:01:17]} 33. axb5 {[%emt 0:00:20]} cxb5 {[%emt 0:00:01]} 34. Nc5 {[%emt 0:01:32]} Kg5 {[%emt 0:00:53]} 35. h3 {[%emt 0:01:07]} Rf5+ {[%emt 0:01:21]} 36. Kg1 {[%emt 0:00:05]} Re1+ {[%emt 0:01:04]} 37. Kh2 {[%emt 0:00:05]} Rff1 {[%emt 0:00:20]} 38. Ne4+ {[%emt 0:02:27]} Nxe4 {[%emt 0:00:35]} 39. dxe4 {[%emt 0:00:01]} Rxe4 {[%emt 0:02:34]} 40. Qb7 {[%emt 0:02:51]} Re5 {[%emt 0:01:00]} 41. Qd7 {[%emt 0:01:56]} Rf4 {[%emt 0:00:50]} 42. g3 {[%emt 0:07:17]} Rfe4 {[%emt 0:03:10]} 43. h4+ {[%emt 0:01:50]} Kg6 {[%emt 0:00:19]} 44. Kh3 {[%emt 0:01:26]} h5 {[%emt 0:00:36]} 45. Kg2 {[%emt 0:02:14]} f6 {[%emt 0:01:37]} 46. Kf3 {[%emt 0:01:03]} Re3+ {[%emt 0:00:33]} 47. Kg2 {[%emt 0:00:27]} Re2+ {[%emt 0:01:42]} 48. Kf1 {[%emt 0:00:01]} R2e4 {[%emt 0:01:10]} 49. Kg2 {[%emt 0:00:13]} Rg4 {[%emt 0:07:25]} 50. Kf2 {[%emt 0:00:52]} Kh7 {[%emt 0:00:53]} 51. Qf7 {[%emt 0:01:59]} Kh6 {[%emt 0:00:44]} 52. Qd7 {[%emt 0:00:28]} Re3 {[%emt 0:02:52]} 53. Qxb5 {[%emt 0:00:24]} Rgxg3 {[%emt 0:01:18]} 54. Qf5 {[%emt 0:01:48]} Rg4 {[%emt 0:01:19]} 55. b5 {[%emt 0:03:46]} Re5 {[%emt 0:00:34]} 56. Qc8 {[%emt 0:01:00]} Rf4+ {[%emt 0:06:20]} 57. Kg3 {[%emt 0:00:08]} Rg4+ {[%emt 0:00:09]} 58. Kf2 {[%emt 0:00:03]} Rf4+ {[%emt 0:04:02]} 1/2-1/2